Cogmind - Beta 17 @@@ ROGUE MODE // 2026.07.24 @ 02:17:32 Player: Ry645 Result: Destroyed by G-34 Mercenary with Small Laser Performance ------------- Evolutions (0) 0 Regions Visited (2) 400 Robots Destroyed (26) 130 Value Destroyed (542) 542 Prototype IDs (4) 80 Alien Tech Used (0) 0 Bonus (0) 0 TOTAL SCORE: 1152 Bonus ------- None Cogmind --------- Core Integrity 0/250 Matter 116/300 Energy 232/250 System Corruption 1% Temperature Cool (6) Movement Treading (160) Location -10/Mines Parts ------- > --- POWER (1) -------- Ion Engine > --- PROPULSION (2) --- Light Treads Light Treads > --- UTILITY (2) ------ Large Storage Unit Seismic Detector > --- WEAPON (2) ------- Assault Rifle Assault Rifle > --- INVENTORY (15) --- Light Nuclear Core Flight Unit Flight Unit Heat Sink Large Matter Pod (150) Large Matter Pod (86) Visual Processing Unit ECM Suite Propulsion Shielding Particle Gun Assault Rifle Shotgun Grenade Launcher Peak State ------------ > --- POWER ------------ Ion Engine > --- PROPULSION ------- Light Treads Light Treads > --- UTILITY ---------- Large Storage Unit Propulsion Shielding > --- WEAPON ----------- Medium Laser Assault Rifle > --- INVENTORY -------- Ion Engine Light Nuclear Core Light Treads Flight Unit Flight Unit Heat Sink Large Matter Pod Large Matter Pod Visual Processing Unit ECM Suite Particle Gun Assault Rifle Assault Rifle Shotgun Grenade Launcher [Rating: 9] Favorites ----------- Power Ion Engine Engine Ion Engine Propulsion Light Treads Treads Light Treads Utility Large Storage Unit Device Tractor Beam Storage Large Storage Unit Protection Propulsion Shielding Weapon Assault Rifle Energy Gun Medium Laser Ballistic Gun Assault Rifle Launcher Grenade Launcher Build | -11 -10 -10 ------- Run | Yrd Mat Min Slots Evolved . | . . . Power . | . . . Propulsion . | . . . Utility . | . . . Weapon . | . . . Parts Attached 19 | 7 6 6 Power 3 | 1 1 1 Engine 3 | 1 1 1 Core . | . . . Reactor . | . . . Propulsion 4 | 2 . 2 Treads 4 | 2 . 2 Leg . | . . . Wheel . | . . . Hover . | . . . Flight . | . . . Utility 6 | 2 3 1 Device 2 | 1 . 1 Storage 2 | 1 1 . Processor . | . . . Hackware . | . . . Protection 2 | . 2 . Artifact . | . . . Weapon 6 | 2 2 2 Energy Gun 1 | 1 . . Energy Cannon . | . . . Ballistic Gun 4 | 1 2 1 Ballistic Cannon . | . . . Launcher 1 | . . 1 Special Weapon . | . . . Impact Weapon . | . . . Slashing Weapon . | . . . Piercing Weapon . | . . . Special Melee Weapon . | . . . Unidentified Prototypes . | . . . Parts Lost 3 | . . 3 Power 1 | . . 1 Propulsion 2 | . . 2 Utility . | . . . Weapon . | . . . Highest Loss Streak 3 | . . 3 To Critical Strikes . | . . . Average Backups 11 | 2 11 14 Power 2 | . 2 1 Propulsion 1 | . 1 2 Utility 3 | . 3 6 Weapon 4 | 1 4 4 Tool/Special . | . . . Unused Backups 14 | . 3 11 Power 1 | . . 1 Propulsion 2 | . . 2 Utility 7 | . 1 6 Weapon 4 | . 2 2 Tool/Special . | . . . Average Slot Usage (%) 96 | . 96 97 Engine 13 | . 13 13 Treads 25 | . 25 26 Device 5 | . 3 12 Storage 14 | . 14 14 Protection 8 | . 10 1 Energy Gun 8 | . 10 . Ballistic Gun 18 | . 17 24 Peak Build Rating 9 | 7 9 9 Average Rating 7 | 4 7 8 On Entrance 5 | . 7 9 Avg Prop Armor Cover (%) . | . . . Naked Turns . | . . . Heaviest Build 31 | 15 30 31 Greatest Support 40 | 40 40 40 Greatest Overweight (x) 9 | . 9 8 Average Overweight (x) . | . . . Largest Inventory Capacity 15 | 8 15 15 Average Capacity 13 | 7 14 15 Most Carried 15 | 5 15 15 Average Carried 11 | 2 11 14 Final Capacity 15 | 8 15 15 Final Carried 15 | 2 15 13 Class Distribution -------------------- 100% | Mutant Dominant Class ---------------- Mutant | -10/Materials Mutant | -10/Mines Resources | -11 -10 -10 ----------- Run | Yrd Mat Min Matter Collected 896 | 285 571 40 Remotely 65 | 10 55 . Salvage Created 866 | 71 652 143 Parts 51 | 2 41 8 Haulers Intercepted 1 | . 1 . Recyclers Shooed . | . . . Parts Field Recycled . | . . . Retrieved Matter . | . . . Parts Self-Destructed . | . . . Prevented . | . . . Parts Restored . | . . . Kills | -11 -10 -10 ------- Run | Yrd Mat Min Combat Hostiles Destroyed 14 | . 10 4 Guns 14 | . 10 4 Classes Destroyed 10 | 1 7 2 Worker 3 | . 3 . Tunneler 2 | . 1 1 Hauler 1 | . 1 . Recycler 3 | 1 2 . Operator 1 | . 1 . Watcher 3 | . 3 . Swarmer 3 | . 3 . Grunt 8 | . 7 1 Sentry 2 | . . 2 Assembled 1 | . . 1 Best Kill Streak 4 | 1 4 2 Combat Bots Only 2 | . 2 2 Max Kills in Single Turn 2 | 1 2 1 Gunslinging . | . . . Exploded . | . . . Melee . | . . . Uniques/NPCs Destroyed . | . . . Combat | -11 -10 -10 -------- Run | Yrd Mat Min Hostile Shots Fired 114 | . 67 47 Missed 26 | . 14 12 Hits 88 | . 53 35 Projectile 88 | . 53 35 Damage Taken 1214 | . 724 490 Core 260 | . 134 126 Absorbed by Shields . | . . . Redirected to Shielding 48 | . 48 . Regen/Repaired (Parts) 147 | . 147 . Core Remaining (%) 100 | 100 . . Volleys Fired 85 | 5 65 15 Largest 2 | 2 2 2 Hottest 70 | 70 70 50 Shots Fired 169 | 10 129 30 Gun 161 | 10 129 22 Cannon . | . . . Launcher 8 | . . 8 Special . | . . . Kinetic 106 | 5 79 22 Thermal 55 | 5 50 . Explosive 8 | . . 8 Electromagnetic . | . . . Robot Hit Streak 12 | 4 12 4 Robot Miss Streak 3 | 3 2 3 Penetration Max . | . . . Secondary Targets . | . . . Shots Hit Robots 104 | 6 83 15 Core Hits 45 | 2 36 7 Critical Kills . | . . . Critical Parts Destroyed . | . . . Critical Strikes 2 | . 2 . Burn 2 | . 2 . Melee Attacks . | . . . Impact . | . . . Slashing . | . . . Piercing . | . . . Sneak Attacks . | . . . Combat Hostiles . | . . . Follow-up Attacks . | . . . Damage Inflicted 1475 | 85 1159 231 Guns 1309 | 85 1070 154 Cannons . | . . . Explosions 148 | . 74 74 Melee . | . . . Ramming 18 | . 15 3 Kinetic 876 | 46 676 154 Thermal 433 | 39 394 . Explosive 148 | . 74 74 Electromagnetic . | . . . Impact . | . . . Slashing . | . . . Piercing . | . . . Highest Corruption 1 | . 1 1 Average Corruption 1 | . 1 1 Corruption Purged . | . . . Corruption Blocked . | . . . Effects 4 | . 2 2 Matter Fused 1 | . . 1 Heat Flow Errors 1 | . 1 . Misfires 1 | . . 1 Alerts 1 | . 1 . Overload Shots . | . . . Overflow Damage 4 | . . 4 Projectiles . | . . . Explosions 4 | . . 4 Melee . | . . . Knockbacks . | . . . Impact . | . . . Kinetic . | . . . Secondary . | . . . Self-Inflicted Damage 104 | . 84 20 Shots 3 | . 1 2 Rammed 2 | . 2 . Targets Rammed 4 | . 3 1 Kicked . | . . . Crushed 2 | . 1 1 Highest Temperature 234 | 45 234 5 Average Temperature 45 | 23 49 2 Received Heat Transfer 465 | . 288 177 Siege Activations . | . . . Martial Activations . | . . . Shielding Activations . | . . . Robots Disrupted . | . . . Combat Hostiles . | . . . Robots Corrupted . | . . . Combat Hostiles . | . . . Parts Fried . | . . . Impact Corruptions . | . . . Robots Melted . | . . . Combat Hostiles . | . . . Parts Melted 3 | . 3 . Heat Transferred 1406 | 111 1295 . Parts Sabotaged . | . . . Parts Stolen . | . . . Parts Stripped . | . . . Power Chain Reactions . | . . . Alert | -11 -10 -10 ------- Run | Yrd Mat Min Maximum Alert Level . | . . . Low Security (%) 100 | 100 100 100 Level 1 . | . . . Level 2 . | . . . Level 3 . | . . . Level 4 . | . . . Level 5 . | . . . High Security . | . . . Max Security . | . . . Peak Influence 171 | 5 171 52 Initial 52 | . . 52 Average 44 | . 55 13 Influence Increases 545 | 5 428 112 Destroy 0b10 Robot/C 260 | . 200 60 Destroy 0b10 Robot/NC 65 | 5 55 5 Destroy Leader 68 | . 58 10 Successful Hack 35 | . 35 . Disable Machine 15 | . 15 . Destroy Structure 72 | . 35 37 Lose Combat Pursuer 30 | . 30 . Influence Decreases 506 | 5 293 208 Entered New Map 83 | . . 83 Time Decay 398 | 5 293 100 Lost Part 25 | . . 25 Squads Dispatched 2 | . 2 . Investigation . | . . . Extermination . | . . . Reinforcement 2 | . 2 . Assault . | . . . Garrison . | . . . Intercept . | . . . Searches Triggered . | . . . Construction Impeded . | . . . Haulers Reinforced . | . . . Active Scanning Responses . | . . . Cargo Convoy Interrupts . | . . . Stealth | -11 -10 -10 --------- Run | Yrd Mat Min Distress Signals 2 | . 1 1 Communications Jammed . | . . . Distress Signals . | . . . Times Spotted 23 | . 18 5 Peak Tracking Total 3 | . 3 2 Tactical Retreats 2 | . 2 . Traps | -11 -10 -10 ------- Run | Yrd Mat Min Traps Triggered 4 | . 4 . Indirectly . | . . . Trap Hack Attempts . | . . . Triggered . | . . . Disarmed . | . . . Reprogrammed . | . . . Reused . | . . . Traps Extracted . | . . . Installed . | . . . Triggered . | . . . Machines | -11 -10 -10 ---------- Run | Yrd Mat Min Machines Disabled 3 | . 1 2 Max in Single Turn 2 | . 1 2 Machines Repaired . | . . . Machines Dismantled . | . . . Machines Sabotaged . | . . . Overloaded Fab Kills . | . . . Hacking | -11 -10 -10 --------- Run | Yrd Mat Min Machines Accessed 8 | . 8 . Terminals 5 | . 5 . Fabricators . | . . . Repair Stations 1 | . 1 . Recycling Units 2 | . 2 . Scanalyzers . | . . . Garrison Access . | . . . Total Hacks 26 | . 26 . Successful 16 | . 16 . Failed 10 | . 10 . Catastrophic 1 | . 1 . Database Lockouts . | . . . Manual 8 | . 8 . Terminals 16 | . 16 . Fabricators . | . . . Repair Stations 7 | . 7 . Recycling Units 3 | . 3 . Scanalyzers . | . . . Garrison Access . | . . . Terminal Hacks 9 | . 9 . Robot Analysis 2 | . 2 . Prototype ID Bank 4 | . 4 . Hauler Manifests 1 | . 1 . Zone Layout 2 | . 2 . Fabricator Hacks . | . . . Repair Station Hacks 5 | . 5 . Scan Component 3 | . 3 . Repair 2 | . 2 . Recycling Unit Hacks 2 | . 2 . Retrieve Components 2 | . 2 . Scanalyzer . | . . . Garrison Access Hacks . | . . . Unauthorized Hacks . | . . . Terminals . | . . . Fabricators . | . . . Repair Stations . | . . . Recycling Units . | . . . Scanalyzers . | . . . Garrison Access . | . . . Data Cores Recovered . | . . . Used . | . . . Hacking Detections 8 | . 8 . Full Trace Events . | . . . Feedback Events . | . . . Feedback Blocked . | . . . Robot Schematics Acquired . | . . . Robots Built . | . . . Authchips . | . . . Time . | . . . Total Robot Build Rating . | . . . Part Schematics Acquired . | . . . Parts Built . | . . . Authchips . | . . . Time . | . . . Total Part Build Rating . | . . . Part Studies Acquired . | . . . Parts Repaired 2 | . 2 . Time 52 | . 52 . Parts Recycled . | . . . Recycled Matter . | . . . Retrieved Matter . | . . . Retrieved Components 5 | . 5 . Parts Scanalyzed . | . . . Part Schematics Acquired . | . . . Parts Damaged . | . . . Bothacking | -11 -10 -10 ------------ Run | Yrd Mat Min Used RIF Installer . | . . . Robots Hacked . | . . . Non-combat . | . . . Combat . | . . . Robot Hacks Applied . | . . . Relay Couplers Released . | . . . Fabnet Peak Effective % . | . . . Robots Rewired . | . . . Allies Hacked . | . . . Hacks Repelled . | . . . Allies | -11 -10 -10 -------- Run | Yrd Mat Min Total Allies . | . . . Largest Group . | . . . Highest-Rated Group . | . . . Highest-Rated Ally . | . . . Total Orders . | . . . Ally Attacks . | . . . Total Damage . | . . . Kills . | . . . Allies Corrupted . | . . . Allies Melted . | . . . Intel | -11 -10 -10 ------- Run | Yrd Mat Min Active Infowar (turns) 330 | . . 330 Seismic 330 | . . 330 Robot Analysis Total 2 | . 2 . Derelict Logs Recovered . | . . . Drone Launches . | . . . Drone Recoveries . | . . . Exploration | -11 -10 -10 ------------- Run | Yrd Mat Min Turns Passed 1942 | 117 1457 368 Spaces Moved 902 | 58 654 190 Core 7 | 3 3 1 Treads 895 | 55 651 189 Legs . | . . . Wheels . | . . . Hover . | . . . Flight . | . . . Fastest Speed 50 | 50 160 160 Average Speed 167 | 154 170 162 Slowest Speed 500 | 160 500 450 Overloaded Moves . | . . . Propulsion Burnouts . | . . . Robots Hopped . | . . . Potential Cave-ins . | . . . Cave-ins Triggered . | . . . Exploration Rate (%) 39 | 4 84 31 Regions Visited 2 Branch Regions 1 Pre-discovered Areas . | . . . Known Exits Taken . | . . . Unknown Exits Taken 2 | 1 1 . Scrap Searched 1 | . . 1 Spaces Dug . | . . . Terrain Destroyed 99 | . 40 59 Melee . | . . . Projectile . | . . . AOE 99 | . 40 59 Terrain Rammed . | . . . Walls Destroyed . | . . . Machines Disabled . | . . . Actions | -11 -10 -10 --------- Run | Yrd Mat Min Total 1158 | 74 866 218 Wait 105 | . 101 4 Move 900 | 57 653 190 Hop . | . . . Pick Up 28 | 5 22 1 Fast Attach 13 | 4 8 1 Attach 8 | 3 3 2 Detach . | . . . Swap 5 | . 2 3 Drop 10 | . 9 1 Fire 85 | 5 65 15 Melee . | . . . Ram . | . . . Kick . | . . . Crush 4 | . 3 1 Escape Stasis . | . . . Rewire . | . . . Trap . | . . . Miscellaneous . | . . . Route ------- -11/Scrapyard -10/Materials (discovered 5 exits: [*Mat x3] / [*Min x2]) -10/Mines (discovered 1 exit: [*Sub]) History --------- Turn | Location | Event 9 | -11/Scrapyard | Discovered new exit (range 16) 118 | -11/Scrapyard | Entered Materials 317 | -10/Materials | Build established: Mutant 534 | -10/Materials | Repaired Grenade Launcher 561 | -10/Materials | Repaired Lgt. Treads 574 | -10/Materials | Discovered new exit (range 7) 716 | -10/Materials | Discovered new exit (range 11) 826 | -10/Materials | Discovered new exit (range 16) 1210 | -10/Materials | Core integrity fell below 50% 1314 | -10/Materials | Discovered new exit (range 14) 1446 | -10/Materials | Discovered new exit (range 4) 1575 | -10/Materials | Entered Mines 1619 | -10/Mines | Assembled infested the area 1905 | -10/Mines | Core integrity fell below 20% 1926 | -10/Mines | Discovered new exit (range 13) 1934 | -10/Mines | Lost 3 parts (1p2n) 1943 | -10/Mines | Destroyed by G-34 Mercenary with Small Laser Last Messages --------------- 01839_ as-28440 destroyed. 01862_ System corrupted: Matter fused (-6). 01878_ T-07 Excavator is excavating. 01890_ Machine disabled. 01893_ Lgt. Treads destroyed. 01893_ Ion Engine destroyed. 01894_ Y-45 Defender destroyed. 01903_ Lgt. Treads destroyed. 01903_ Destroyed Lgt. Treads. 01905_ The unstable cave ceiling collapses. 01909_ Y-45 Defender destroyed. 01918_ The unstable cave ceiling collapses. 01923_ Acquired Lgt. Treads. 01925_ T-07 Excavator is excavating. 01926_ The unstable cave ceiling collapses. 01926_ EXIT=FOUND 01929_ T-07 Excavator is excavating. 01936_ The unstable cave ceiling collapses. 01937_ T-07 Excavator is excavating. 01938_ G-47 Trooper destroyed. Map ----- +----------------------------------------------------+ | ??????????????????????????????????????????? | | ??????????????????????????????????????????? | | ??????????????????????????????????????????? | | ??????????????????????????????????????????? | | ???????????? ????????????????????????????? | | ???????????# ##??????????????????????????? | | ??????????## #??????????????????????????? | | ??????????# #??????????????????????????? | | ??????????# ####??????????????????????? | | ??????????? ?# ??????????????????????? | | ??????????? ?#$ #??????????????????????? | | ??????????? ?# #??????????????????????? | | ??????????## ?# #??????????????????????? | | ??????????? %#?# #??????????????????????? | | ???????????# #?# #??????????????????????? | | ???????????# #?# #??????????????????????? | | ???????????# ### ####???????????????????? | | ???????????# ###?????????????????? | | ?########### ##????????????????? | | ?# ##???????????????? | | ?# ########### ## ##??????????????? | | ?# #?????????############ g##?????????????? | | ?# #??????????????## # ##%!#?????????????? | | ?# #??????????????# ] = ##????????????? | | ?# #??????????????# !! #????????????? | | ?# #??????????????# =%@ ##### ##?????? | | ## #????????????## %[ ?????? | | #????????????## # t #??? | | ####?????????????# # [ #### #??? | | ?????????????????# ##?????#<##??? | | ?????????????????# ######????????????? | | ?????????????????# ??????????????????? | | ?????????????????#######??????????????????? | | ??????????????????????????????????????????? | | | | | | | | | | | | | | | | | | | | | | | | | | | | | | | | | +----------------------------------------------------+ Best States ------------- Heat Dissipation 25 Energy Generation 10 Energy Capacity 250 Matter Stores 300 Matter Capacity 300 Sight Range 16 Terrain Scan Density 10 Propulsion Shielding 33 Utility Shielding 33 Evasion (%) 40 Recoil Reduction 2 Item Schematics ----------------- None Robot Schematics ------------------ None Fabricated ------------ Nothing Repaired ---------- Grenade Launcher | 35% | -10/Materials Lgt. Treads | 22% | -10/Materials Studied --------- None Alien Tech Used ----------------- None Achievements -------------- None Challenges ------------ None Game ------ Seed LinkedHypercooledCompanion Manual? 0 Play Time 00:17:54 Cumulative 26.4 hours Start 2026.07.24 @ 02:01:51 End 2026.07.24 @ 02:17:32 Sessions 1 Manual Loads 0 Difficulty Rogue Special Mode None Game No. 18 Rogue 18 Adventurer 0 Explorer 0 Win Type - Total 0 Types 0/0/0/0/0/0/0/0/0/0 Lore% 9 Gallery% 18 Achievement% 21 Wizard Run 0 Options --------- Layout 2 ASCII 0 Keyboard 0 Movement Mouse Keybinds 1 Fullscreen 1 Font 24/Terminus Map View 50x44 Zoom Use 0% Tactical HUD 1 Map Filters NONE Filters NONE Steam 1 RUN: 7e78b6a4-f17f-4c70-bf6a-c7ea822cf6df